{"text_format":"3","workbook":"xlsx","n_sheets":3,"sheets":["Лист1","Лист2","Лист3"],"read":"whole","date_system":"1900"}

{"sheet":"Лист1","index":0,"n_rows":41,"n_cols":7,"rows_kept":41,"merged":[[0,4,0,6],[1,0,1,6],[2,0,2,6],[3,0,3,7],[4,0,4,4],[11,0,11,6],[15,0,17,0],[18,1,18,6],[21,0,21,5],[29,0,29,5]]}
[]
[" РАСЧЕТ СТОИМОСТИ ПЛАТНОЙ УСЛУГИ"]
["\"Акварелька\", педвгог дополнительного образования  Кандратьева А.М."]
["(наименование платной услуги )"]
["1. Расчет затрат на оплату труда основного персонала, непосредственно участвующего в процессе оказания платной услуги (работы)"]
[]
["Наименование должности","Средняя заработная плата, включая начисления на выплаты по оплате труда, рублей в месяц","месячный фонд рабочего времени ,минут","норма времени на оказание платной услуги, минут","Затраты на оплату труда персонала, рублей                 (5) = (2) : (3) х (4) "]
[1,2,3,4,5]
["1.Педагог дополнительного образования",25212.82,8754,30,{"$f":"B9/C9*D9","v":{"v":86.40445510623715,"d":"86.40"}}]
[]
["Итого",{"$nulls":3},{"$f":"E9","v":{"v":86.40445510623715,"d":"86.40"}}]
["2. Расчет затрат на материальные запасы, полностью потребляемые в процессе оказания платной услуги (работы)"]
[]
["Вид материальных запасов","Наименование товара, составляющего материальный запас","Единица измерения","Норма потребления","Объем оказания платных услуг за норму времени","Цена за единицу","Всего затрат материальных запасов              (7) = (4) х (5) х (6)"]
[1,2,3,4,5,6,7]
["1. Затраты на приобретение расходных материалов","альбом","шт",0.05,10,15,{"$f":"F16*E16*D16","v":7.5}]
[null,"краски","шт",0.04,10,10,{"$f":"F17*E17*D17","v":{"v":4,"d":"4.0"}}]
[null,"карандаши","шт",0.04,10,10,{"v":4,"d":"4.0"}]
[null,"затраты на материалы не производятся"]
["Итого",{"$nulls":5},{"$f":"SUM(G16:G18)","v":15.5}]
[]
["3. Расчет суммы начисленной амортизации обудования, используемого при оказании платной услуги(работы)"]
[]
["Наименование оборудования","Балансовая стоимость","Годовая норма износа, процентов","Годовая норма времени работы оборудования, часов","Время работы оборудования в процессе оказания платной услуги, часов","Сумма начисленной амортизации            (6) = (2) х (3) х (4) :(5)"]
[1,2,3,4,5,6]
["1."]
["2."]
["Итого",{"$nulls":4},0]
[]
["4. Расчет накладных затрат, неоходимых для обеспечения деятельности учреждения при оказании платной услуги (работы)"]
[]
["№ п/п","Наименование статей затрат","Сумма"]
["1.","Прогноз затрат на адмистративно-управленческий персонал",{"$f":"85895.96*10%*12","v":{"v":103075.15200000002,"d":"103075.15"}}," расчет по формуле 19583,23*10%*12"]
["2.","Прогноз затрат общехозяйственного назначения",{"v":1826760.02,"d":"1,826,760.02"}]
["3.","Прогноз суммы начисленной амортизации имущества общехозяйственного назначения",47734.65]
["4.","Прогноз суммарного фонда оплаты труда осного персонала",{"v":20553626.4,"d":"20,553,626.40"}]
["5.","Коэффициент накладных затрат (5) = ((1) + (2) + (3)) :(4) ",{"$f":"(C33+C34+C35)/C36","v":{"v":0.09621512931654727,"d":"0.10"}}]
["6.","Затраты на основной персонал, участвующий в предостовлении платной услуги",{"$f":"E9","v":{"v":86.40445510623715,"d":"86.40"}}]
["7.","Итого накладных затрат (7) = (5) х (6)",{"$f":"C37*C38","v":{"v":8.313415821572411,"d":"8.31"}}]
[]
["Суммы выделенные красным цветом считаются автоматически"]

{"sheet":"Лист2","index":1,"n_rows":25,"n_cols":5,"rows_kept":25,"merged":[[7,0,7,3],[8,1,8,2],[9,0,9,3],[10,0,10,1],[23,4,23,9]]}
[null,null,"УТВЕРЖДАЮ:"]
[null,null,"Заведующий ДОУ №13"]
[null,null,"Вергизова Е.Н."]
[]
[null,null,"__________________"]
[null,null,"___________________ _______г"]
[]
["Расчет цены на оказание платной услуги (КАЛЬКУЛЯЦИЯ)"]
[null,"Кружок \"Акварелька\""]
["(наименование платной услуги)"]
["Плановое кол-во воспитанников",null,15,"чел."]
["Норма времени на оказание услуги",null,30,"мин."]
["Количество занятий в месяц",null,4,"занятия","количество занятий устанавливается  в соответствии с СанПиН"]
[]
["№ п/п","Наименование статей затрат","Единица  измерения","Показатель"]
["1.","Затраты на олату труда основного персонала","рублей",{"$f":"Лист1!E9","v":{"v":86.40445510623715,"d":"86.40"}}]
["2.","Затраты материальных запасов","рублей",{"$f":"Лист1!G20","v":{"v":15.5,"d":"15.50"}}]
["3.","Сумма начисленной амортизации оборудования, используемого при оказании платной услуги","рублей",{"$f":"Лист1!F28","v":{"v":0,"d":"0.00"}}]
["4.","Накладные затраты, относимые на платную услугу","рублей",{"$f":"Лист1!C39","v":{"v":8.313415821572411,"d":"8.31"}}]
["5.","Итого затрат","рублей",{"$f":"D16+D17+D18+D19","v":{"v":110.21787092780956,"d":"110.22"}}]
[null,"Рентабельность","%",{"v":0.25,"d":"25%"}]
["6.","Затраты с учетом рентабельности ","рублей",{"$f":"D20*D21+D20","v":{"v":137.77233865976194,"d":"137.77"}}]
["7.","Плановое количество оказываемых услуг ","занятий в мес.",4]
["8.","Цена платной услуги","рублей за 1 услугу в мес.",{"$f":"D23*D22","v":{"v":551.0893546390478,"d":"551.1"}},"для удобства оплаты через терминалы можно округлить цену услуги до целых, но желательно в меньшую сторону для того что-бы не возмущались родители (например 440 руб.)"]
[{"$nulls":3},{"v":550,"d":"550.0"}]

{"sheet":"Лист3","index":2,"n_rows":8,"n_cols":6,"rows_kept":8,"merged":[[0,0,0,5],[4,0,4,4],[5,0,5,4],[6,0,6,4]]}
["Рекомендуемое распределение средств"]
[]
["Стоимость обучения одного воспитанника в месяц ",{"$nulls":4},{"$f":"Лист2!D25","v":{"v":550,"d":"550.00"}}]
["Стоимость обучения 15-ти воспитанниов в месяц ",{"$nulls":4},{"$f":"F3*15","v":{"v":8250,"d":"8,250.00"}}]
["1. ФОТ = 60%",{"$nulls":4},{"$f":"F4*60%","v":{"v":4950,"d":"4,950.00"}}]
["Начисление на зарплату - 30,2%",{"$nulls":4},{"$f":"F5-F5/1.302","v":{"v":1148.1566820276498,"d":"1,148.16"}}]
["Фонд заработной платы без начислений ",{"$nulls":4},{"$f":"F5-F6","v":{"v":3801.84331797235,"d":"3,801.84"}}]
["2. Фонд метериального обеспечения ДОУ в мес.",{"$nulls":4},{"$f":"F4-F5","v":{"v":3300,"d":"3,300.00"}}]